[Event "Titled Tuesday Blitz July 11 Early 2023"]
[White "Tagliata"]
[Black "Mazurkiewicz, Michal"]
[BlackFideId "1124943"]
[WhiteElo "2227"]
[BlackElo "2408"]
[Result "0-1"]
[Round "11"]
[TimeControl "180+2"]
[Date "2023.07.11"]
[WhiteClock "0:00:28"]
[BlackClock "0:00:17"]
[Board "115"]

1. e4 {[%clk 0:02:55]}  d6 {[%clk 0:02:59]} 2. d4 {[%clk 0:02:54]}  Nf6 {[%clk 0:02:59]} 3. Nc3 {[%clk 0:02:54]}  c6 {[%clk 0:03:00]} 4. Nf3 {[%clk 0:02:49]}  Bg4 {[%clk 0:02:59]} 5. Be2 {[%clk 0:02:49]}  e6 {[%clk 0:02:57]} 6. h3 {[%clk 0:02:49]}  Bh5 {[%clk 0:02:56]} 7. O-O {[%clk 0:02:47]}  d5 {[%clk 0:02:56]} 8. e5 {[%clk 0:02:46]}  Nfd7 {[%clk 0:02:56]} 9. Nd2 {[%clk 0:02:39]}  Bg6 {[%clk 0:02:56]} 10. Bd3 {[%clk 0:02:32]}  c5 {[%clk 0:02:55]} 11. Nf3 {[%clk 0:02:23]}  Nc6 {[%clk 0:02:52]} 12. Ne2 {[%clk 0:02:22]}  cxd4 {[%clk 0:02:49]} 13. Bf4 {[%clk 0:02:20]}  Qb6 {[%clk 0:02:44]} 14. Rb1 {[%clk 0:02:16]}  Be4 {[%clk 0:02:43]} 15. a3 {[%clk 0:02:15]}  Bxf3 {[%clk 0:02:42]} 16. gxf3 {[%clk 0:02:14]}  Ndxe5 {[%clk 0:02:42]} 17. Kg2 {[%clk 0:02:12]}  Be7 {[%clk 0:02:36]} 18. b4 {[%clk 0:02:11]}  Bf6 {[%clk 0:02:17]} 19. b5 {[%clk 0:02:10]}  Nxd3 {[%clk 0:02:16]} 20. Qxd3 {[%clk 0:01:55]}  Ne5 {[%clk 0:02:16]} 21. Qxd4 {[%clk 0:01:47]}  Nxf3 {[%clk 0:01:54]} 22. Qxb6 {[%clk 0:01:33]}  Nh4+ {[%clk 0:01:54]} 23. Kg3 {[%clk 0:01:31]}  Nf5+ {[%clk 0:01:52]} 24. Kg2 {[%clk 0:01:30]}  axb6 {[%clk 0:01:53]} 25. Rb3 {[%clk 0:01:30]}  Kd7 {[%clk 0:01:51]} 26. Ng3 {[%clk 0:01:27]}  Nxg3 {[%clk 0:01:49]} 27. fxg3 {[%clk 0:01:28]}  Rhc8 {[%clk 0:01:49]} 28. Rf2 {[%clk 0:01:28]}  Rc4 {[%clk 0:01:45]} 29. Be3 {[%clk 0:01:27]}  Rac8 {[%clk 0:01:44]} 30. Bxb6 {[%clk 0:01:24]}  Rxc2 {[%clk 0:01:44]} 31. a4 {[%clk 0:01:24]}  Rxf2+ {[%clk 0:01:44]} 32. Kxf2 {[%clk 0:01:25]}  Rc2+ {[%clk 0:01:20]} 33. Kg1 {[%clk 0:01:14]}  Ra2 {[%clk 0:01:02]} 34. a5 {[%clk 0:01:14]}  Bd8 {[%clk 0:00:59]} 35. Rc3 {[%clk 0:01:01]}  Rb2 {[%clk 0:00:39]} 36. Bxd8 {[%clk 0:00:57]}  Kxd8 {[%clk 0:00:40]} 37. b6 {[%clk 0:00:57]}  Ra2 {[%clk 0:00:20]} 38. Rc7 {[%clk 0:00:55]}  Rxa5 {[%clk 0:00:20]} 39. Rxb7 {[%clk 0:00:55]}  Rb5 {[%clk 0:00:20]} 40. Rxf7 {[%clk 0:00:54]}  Rxb6 {[%clk 0:00:20]} 41. Rxg7 {[%clk 0:00:54]}  d4 {[%clk 0:00:17]} 42. Kf2 {[%clk 0:00:51]}  e5 {[%clk 0:00:16]} 43. Rxh7 {[%clk 0:00:49]}  e4 {[%clk 0:00:17]} 44. Rh4 {[%clk 0:00:47]}  Re6 {[%clk 0:00:17]} 45. Ke2 {[%clk 0:00:47]}  Kd7 {[%clk 0:00:17]} 46. Rf4 {[%clk 0:00:47]}  Kd6 {[%clk 0:00:18]} 47. h4 {[%clk 0:00:46]}  Kd5 {[%clk 0:00:18]} 48. Rf5+ {[%clk 0:00:46]}  Kc4 {[%clk 0:00:18]} 49. Rf8 {[%clk 0:00:43]}  e3 {[%clk 0:00:18]} 50. Rc8+ {[%clk 0:00:42]}  Kd5 {[%clk 0:00:19]} 51. Kd3 {[%clk 0:00:35]}  e2 {[%clk 0:00:17]} 52. Rd8+ {[%clk 0:00:33]}  Kc6 {[%clk 0:00:17]} 53. Rc8+ {[%clk 0:00:26]}  Kd7 {[%clk 0:00:17]} 54. Rc1 {[%clk 0:00:27]}  e1=Q {[%clk 0:00:17]} 55. Rxe1 {[%clk 0:00:28]}  Rxe1 {[%clk 0:00:17]} 56. Kxd4 {[%clk 0:00:29]}  Rg1 {[%clk 0:00:18]} 57. Ke4 {[%clk 0:00:29]}  Rxg3 {[%clk 0:00:17]} 58. Kf5 {[%clk 0:00:30]}  Ke7 {[%clk 0:00:16]} 59. h5 {[%clk 0:00:28]}  Kf7 {[%clk 0:00:17]} 0-1


[Site "https://www.chess.com"]

[Event "Titled Tuesday Blitz July 11 Early 2023"]
[White "Vaglio Munoz, Jaime"]
[Black "Ionescu, Mihai"]
[WhiteFideId "6500145"]
[BlackFideId "1202499"]
[WhiteElo "2276"]
[BlackElo "2523"]
[Result "0-1"]
[Round "11"]
[TimeControl "180+2"]
[Date "2023.07.11"]
[WhiteClock "0:00:36"]
[BlackClock "0:00:27"]
[Board "119"]

1. e4 {[%clk 0:03:00]}  c5 {[%clk 0:02:59]} 2. a3 {[%clk 0:03:00]}  d6 {[%clk 0:02:56]} 3. b4 {[%clk 0:03:00]}  cxb4 {[%clk 0:02:55]} 4. axb4 {[%clk 0:03:00]}  Nf6 {[%clk 0:02:55]} 5. d3 {[%clk 0:03:01]}  g6 {[%clk 0:02:55]} 6. Bb2 {[%clk 0:03:00]}  Bg7 {[%clk 0:02:55]} 7. c4 {[%clk 0:03:00]}  O-O {[%clk 0:02:52]} 8. Nf3 {[%clk 0:03:00]}  a5 {[%clk 0:02:50]} 9. Nbd2 {[%clk 0:02:57]}  Nbd7 {[%clk 0:02:48]} 10. d4 {[%clk 0:02:54]}  b6 {[%clk 0:02:45]} 11. h3 {[%clk 0:02:52]}  Bb7 {[%clk 0:02:45]} 12. bxa5 {[%clk 0:02:48]}  Nxe4 {[%clk 0:02:42]} 13. Nxe4 {[%clk 0:02:47]}  Bxe4 {[%clk 0:02:42]} 14. a6 {[%clk 0:02:46]}  Qc8 {[%clk 0:02:37]} 15. Qa4 {[%clk 0:02:38]}  Bxf3 {[%clk 0:02:21]} 16. gxf3 {[%clk 0:02:39]}  Nb8 {[%clk 0:02:21]} 17. Qb5 {[%clk 0:02:24]}  Rxa6 {[%clk 0:02:19]} 18. Rc1 {[%clk 0:02:21]}  Qe6+ {[%clk 0:01:44]} 19. Be2 {[%clk 0:02:18]}  Ra8 {[%clk 0:01:26]} 20. d5 {[%clk 0:02:07]}  Qf5 {[%clk 0:01:20]} 21. Bxg7 {[%clk 0:02:04]}  Kxg7 {[%clk 0:01:19]} 22. Qxb6 {[%clk 0:02:04]}  Nd7 {[%clk 0:01:19]} 23. Qd4+ {[%clk 0:02:04]}  Kg8 {[%clk 0:01:18]} 24. Qe4 {[%clk 0:02:03]}  Qf6 {[%clk 0:01:16]} 25. Kf1 {[%clk 0:02:02]}  Nc5 {[%clk 0:01:16]} 26. Qe3 {[%clk 0:02:01]}  Ra2 {[%clk 0:01:13]} 27. Kg2 {[%clk 0:02:00]}  Rfa8 {[%clk 0:00:59]} 28. h4 {[%clk 0:01:59]}  R8a3 {[%clk 0:00:55]} 29. Qg5 {[%clk 0:01:04]}  Qxg5+ {[%clk 0:00:50]} 30. hxg5 {[%clk 0:01:05]}  Rxe2 {[%clk 0:00:51]} 31. Rh6 {[%clk 0:00:54]}  Raa2 {[%clk 0:00:49]} 32. Rch1 {[%clk 0:00:46]}  Rxf2+ {[%clk 0:00:48]} 33. Kg3 {[%clk 0:00:47]}  Nd3 {[%clk 0:00:39]} 34. f4 {[%clk 0:00:38]}  Nxf4 {[%clk 0:00:32]} 35. Rxh7 {[%clk 0:00:37]}  Nh5+ {[%clk 0:00:32]} 36. R1xh5 {[%clk 0:00:36]}  gxh5 {[%clk 0:00:32]} 37. Rxh5 {[%clk 0:00:36]}  Rg2+ {[%clk 0:00:28]} 38. Kf3 {[%clk 0:00:36]}  Rh2 {[%clk 0:00:29]} 39. Rxh2 {[%clk 0:00:35]}  Rxh2 {[%clk 0:00:29]} 40. c5 {[%clk 0:00:35]}  dxc5 {[%clk 0:00:28]} 41. g6 {[%clk 0:00:35]}  fxg6 {[%clk 0:00:28]} 42. d6 {[%clk 0:00:35]}  exd6 {[%clk 0:00:29]} 43. Kg3 {[%clk 0:00:36]}  Ra2 {[%clk 0:00:27]} 0-1


[Site "https://www.chess.com"]

[Event "Titled Tuesday Blitz July 11 Early 2023"]
[White "Sarkar, Justin"]
[Black "Manukian, Artak"]
[WhiteFideId "2010011"]
[BlackFideId "13301373"]
[WhiteElo "2251"]
[BlackElo "2464"]
[Result "0-1"]
[Round "11"]
[TimeControl "180+2"]
[Date "2023.07.11"]
[WhiteClock "0:00:00"]
[BlackClock "0:00:30"]
[Board "120"]

1. d4 {[%clk 0:02:55]}  d5 {[%clk 0:02:59]} 2. c4 {[%clk 0:02:54]}  dxc4 {[%clk 0:02:59]} 3. Nf3 {[%clk 0:02:44]}  Nf6 {[%clk 0:02:59]} 4. e3 {[%clk 0:02:43]}  e6 {[%clk 0:02:59]} 5. Bxc4 {[%clk 0:02:42]}  c5 {[%clk 0:03:00]} 6. O-O {[%clk 0:02:41]}  a6 {[%clk 0:03:00]} 7. Bd3 {[%clk 0:02:26]}  Nc6 {[%clk 0:02:58]} 8. Nc3 {[%clk 0:02:12]}  cxd4 {[%clk 0:02:57]} 9. exd4 {[%clk 0:02:12]}  Nb4 {[%clk 0:02:57]} 10. Bb1 {[%clk 0:02:05]}  Be7 {[%clk 0:02:56]} 11. Bg5 {[%clk 0:02:00]}  O-O {[%clk 0:02:53]} 12. a3 {[%clk 0:01:53]}  Nbd5 {[%clk 0:02:49]} 13. Qd3 {[%clk 0:01:52]}  g6 {[%clk 0:02:39]} 14. Bh6 {[%clk 0:01:42]}  Re8 {[%clk 0:02:38]} 15. Ne5 {[%clk 0:01:42]}  Bd7 {[%clk 0:02:28]} 16. h4 {[%clk 0:01:23]}  Rc8 {[%clk 0:02:26]} 17. Ne4 {[%clk 0:00:49]}  Bb5 {[%clk 0:02:18]} 18. Qf3 {[%clk 0:00:40]}  Bxf1 {[%clk 0:02:12]} 19. Kxf1 {[%clk 0:00:39]}  Qb6 {[%clk 0:01:43]} 20. Bd3 {[%clk 0:00:06]}  Qxd4 {[%clk 0:01:33]} 21. Nxf7 {[%clk 0:00:06]}  Kxf7 {[%clk 0:01:29]} 22. Ng5+ {[%clk 0:00:06]}  Kg8 {[%clk 0:01:27]} 23. Nxe6 {[%clk 0:00:04]}  Qxb2 {[%clk 0:01:23]} 24. Re1 {[%clk 0:00:04]}  Qxa3 {[%clk 0:01:03]} 25. h5 {[%clk 0:00:04]}  Nb4 {[%clk 0:00:33]} 26. hxg6 {[%clk 0:00:03]}  Qxd3+ {[%clk 0:00:29]} 27. Qxd3 {[%clk 0:00:00]}  Nxd3 {[%clk 0:00:30]} 0-1


[Site "https://www.chess.com"]

[Event "Titled Tuesday Blitz July 11 Early 2023"]
[White "Mishra, Manoj"]
[Black "GAO"]
[WhiteFideId "5006007"]
[WhiteElo "2193"]
[BlackElo "2373"]
[Result "0-1"]
[Round "11"]
[TimeControl "180+2"]
[Date "2023.07.11"]
[WhiteClock "0:00:00"]
[BlackClock "0:00:19"]
[Board "122"]

1. d4 {[%clk 0:03:00]}  Nf6 {[%clk 0:02:59]} 2. Bf4 {[%clk 0:02:58]}  d5 {[%clk 0:02:59]} 3. Nc3 {[%clk 0:02:58]}  g6 {[%clk 0:02:55]} 4. e3 {[%clk 0:02:57]}  Bg7 {[%clk 0:02:55]} 5. h4 {[%clk 0:02:57]}  h5 {[%clk 0:02:54]} 6. Nf3 {[%clk 0:02:53]}  O-O {[%clk 0:02:54]} 7. Ne5 {[%clk 0:02:52]}  Nbd7 {[%clk 0:02:54]} 8. f3 {[%clk 0:02:49]}  Nxe5 {[%clk 0:02:53]} 9. Bxe5 {[%clk 0:02:47]}  Nd7 {[%clk 0:02:54]} 10. Bxg7 {[%clk 0:02:44]}  Kxg7 {[%clk 0:02:53]} 11. Nxd5 {[%clk 0:02:45]}  c5 {[%clk 0:02:48]} 12. dxc5 {[%clk 0:02:43]}  Qa5+ {[%clk 0:02:46]} 13. b4 {[%clk 0:02:41]}  Qd8 {[%clk 0:02:40]} 14. g4 {[%clk 0:02:30]}  Ne5 {[%clk 0:02:38]} 15. Be2 {[%clk 0:02:19]}  a5 {[%clk 0:02:21]} 16. g5 {[%clk 0:02:18]}  axb4 {[%clk 0:02:19]} 17. Kf2 {[%clk 0:01:53]}  Be6 {[%clk 0:02:11]} 18. Nf4 {[%clk 0:01:52]}  Qc7 {[%clk 0:02:06]} 19. Qd4 {[%clk 0:01:46]}  Kh7 {[%clk 0:02:00]} 20. Qxb4 {[%clk 0:01:38]}  Ra5 {[%clk 0:01:33]} 21. Rhb1 {[%clk 0:01:15]}  Rxc5 {[%clk 0:01:28]} 22. Qxb7 {[%clk 0:01:14]}  Rxc2 {[%clk 0:01:28]} 23. Qxc7 {[%clk 0:01:13]}  Rxc7 {[%clk 0:01:29]} 24. a4 {[%clk 0:01:12]}  Bc4 {[%clk 0:01:23]} 25. a5 {[%clk 0:01:09]}  Bxe2 {[%clk 0:01:20]} 26. Nxe2 {[%clk 0:01:07]}  Ra8 {[%clk 0:01:19]} 27. a6 {[%clk 0:01:05]}  Rca7 {[%clk 0:01:19]} 28. Rb6 {[%clk 0:01:03]}  Nd7 {[%clk 0:01:16]} 29. Rb5 {[%clk 0:00:37]}  Rxa6 {[%clk 0:01:14]} 30. Rxa6 {[%clk 0:00:37]}  Rxa6 {[%clk 0:01:15]} 31. Rb7 {[%clk 0:00:37]}  Rd6 {[%clk 0:01:15]} 32. Nd4 {[%clk 0:00:36]}  Kg7 {[%clk 0:01:12]} 33. f4 {[%clk 0:00:36]}  e5 {[%clk 0:01:07]} 34. Nb5 {[%clk 0:00:30]}  Rd2+ {[%clk 0:00:43]} 35. Ke1 {[%clk 0:00:29]}  Rb2 {[%clk 0:00:28]} 36. Rxd7 {[%clk 0:00:08]}  Rxb5 {[%clk 0:00:28]} 37. Ke2 {[%clk 0:00:08]}  exf4 {[%clk 0:00:20]} 38. exf4 {[%clk 0:00:08]}  Rb3 {[%clk 0:00:20]} 39. f5 {[%clk 0:00:05]}  gxf5 {[%clk 0:00:20]} 40. Rd5 {[%clk 0:00:05]}  Rh3 {[%clk 0:00:20]} 41. Rxf5 {[%clk 0:00:04]}  Rxh4 {[%clk 0:00:20]} 42. Kf2 {[%clk 0:00:05]}  Rg4 {[%clk 0:00:20]} 43. Kf3 {[%clk 0:00:05]}  Rg1 {[%clk 0:00:19]} 44. Kf2 {[%clk 0:00:05]}  Rg4 {[%clk 0:00:19]} 45. Kf3 {[%clk 0:00:05]}  Ra4 {[%clk 0:00:19]} 46. Rb5 {[%clk 0:00:04]}  Kg6 {[%clk 0:00:19]} 47. Kf2 {[%clk 0:00:01]}  Rg4 {[%clk 0:00:19]} 48. Kf3 {[%clk 0:00:01]}  Rxg5 {[%clk 0:00:20]} 49. Rb6+ {[%clk 0:00:02]}  f6 {[%clk 0:00:20]} 50. Rb8 {[%clk 0:00:02]}  Kf5 {[%clk 0:00:20]} 51. Rb5+ {[%clk 0:00:02]}  Kg6 {[%clk 0:00:20]} 52. Rb6 {[%clk 0:00:03]}  Ra5 {[%clk 0:00:20]} 53. Rb8 {[%clk 0:00:03]}  Kf5 {[%clk 0:00:20]} 54. Rh8 {[%clk 0:00:02]}  Ra3+ {[%clk 0:00:21]} 55. Kg2 {[%clk 0:00:02]}  Kg4 {[%clk 0:00:21]} 56. Rg8+ {[%clk 0:00:02]}  Kh4 {[%clk 0:00:21]} 57. Kh2 {[%clk 0:00:02]}  f5 {[%clk 0:00:21]} 58. Rf8 {[%clk 0:00:02]}  Rf3 {[%clk 0:00:21]} 59. Rf7 {[%clk 0:00:02]}  f4 {[%clk 0:00:20]} 60. Rf6 {[%clk 0:00:01]}  Kg5 {[%clk 0:00:19]} 61. Rf8 {[%clk 0:00:02]}  Ra3 {[%clk 0:00:20]} 62. Rg8+ {[%clk 0:00:02]}  Kf5 {[%clk 0:00:20]} 63. Rf8+ {[%clk 0:00:02]}  Kg4 {[%clk 0:00:21]} 64. Rg8+ {[%clk 0:00:02]}  Kf3 {[%clk 0:00:21]} 65. Rh8 {[%clk 0:00:03]}  Ra5 {[%clk 0:00:20]} 66. Kh3 {[%clk 0:00:00]}  Ra1 {[%clk 0:00:19]} 0-1


[Site "https://www.chess.com"]

[Event "Titled Tuesday Blitz July 11 Early 2023"]
[White "HeinichessPY"]
[Black "Mayaud, Raphael"]
[BlackFideId "627151"]
[WhiteElo "2163"]
[BlackElo "2372"]
[Result "1-0"]
[Round "11"]
[TimeControl "180+2"]
[Date "2023.07.11"]
[WhiteClock "0:01:48"]
[BlackClock "0:00:51"]
[Board "123"]

1. e4 {[%clk 0:03:00]}  c5 {[%clk 0:02:53]} 2. Nc3 {[%clk 0:02:59]}  e6 {[%clk 0:02:53]} 3. g3 {[%clk 0:02:59]}  Nc6 {[%clk 0:02:43]} 4. Bg2 {[%clk 0:02:59]}  g6 {[%clk 0:02:43]} 5. Nge2 {[%clk 0:02:59]}  Bg7 {[%clk 0:02:43]} 6. O-O {[%clk 0:02:59]}  Nge7 {[%clk 0:02:43]} 7. d3 {[%clk 0:02:59]}  O-O {[%clk 0:02:42]} 8. Be3 {[%clk 0:02:58]}  b6 {[%clk 0:02:41]} 9. Qd2 {[%clk 0:02:58]}  Nd4 {[%clk 0:02:08]} 10. e5 {[%clk 0:02:44]}  Rb8 {[%clk 0:02:07]} 11. Nxd4 {[%clk 0:02:44]}  cxd4 {[%clk 0:02:07]} 12. Bxd4 {[%clk 0:02:45]}  Nc6 {[%clk 0:02:04]} 13. Bxc6 {[%clk 0:02:24]}  dxc6 {[%clk 0:02:03]} 14. Qf4 {[%clk 0:02:24]}  Bb7 {[%clk 0:01:54]} 15. Ne4 {[%clk 0:02:23]}  c5 {[%clk 0:01:35]} 16. Bc3 {[%clk 0:02:15]}  Qd5 {[%clk 0:01:35]} 17. f3 {[%clk 0:02:09]}  Rbd8 {[%clk 0:01:09]} 18. Nf6+ {[%clk 0:02:01]}  Bxf6 {[%clk 0:01:07]} 19. exf6 {[%clk 0:01:53]}  Rd7 {[%clk 0:00:51]} 20. Qh6 {[%clk 0:01:48]} 1-0


[Site "https://www.chess.com"]

[Event "Titled Tuesday Blitz July 11 Early 2023"]
[White "Tqebuchava, Zurab"]
[Black "Fajdetic, Hrvoje"]
[WhiteFideId "13601113"]
[BlackFideId "14501945"]
[WhiteElo "2082"]
[BlackElo "2319"]
[Result "0-1"]
[Round "11"]
[TimeControl "180+2"]
[Date "2023.07.11"]
[WhiteClock "0:00:00"]
[BlackClock "0:00:26"]
[Board "124"]

1. e4 {[%clk 0:03:00]}  c5 {[%clk 0:02:53]} 2. Nf3 {[%clk 0:02:59]}  a6 {[%clk 0:02:53]} 3. b3 {[%clk 0:02:58]}  Nc6 {[%clk 0:02:52]} 4. Bb2 {[%clk 0:02:57]}  d5 {[%clk 0:02:50]} 5. exd5 {[%clk 0:02:56]}  Qxd5 {[%clk 0:02:51]} 6. Nc3 {[%clk 0:02:52]}  Qh5 {[%clk 0:02:49]} 7. Be2 {[%clk 0:02:51]}  Bg4 {[%clk 0:02:46]} 8. h3 {[%clk 0:02:49]}  Nf6 {[%clk 0:02:40]} 9. d3 {[%clk 0:02:28]}  Qh6 {[%clk 0:02:10]} 10. Qd2 {[%clk 0:02:15]}  Qxd2+ {[%clk 0:02:08]} 11. Kxd2 {[%clk 0:02:14]}  Bh5 {[%clk 0:02:04]} 12. Rae1 {[%clk 0:02:10]}  e6 {[%clk 0:02:03]} 13. Kc1 {[%clk 0:02:08]}  O-O-O {[%clk 0:02:00]} 14. Nd2 {[%clk 0:02:00]}  Bxe2 {[%clk 0:01:58]} 15. Nxe2 {[%clk 0:01:59]}  Be7 {[%clk 0:01:53]} 16. a4 {[%clk 0:01:54]}  b5 {[%clk 0:01:43]} 17. axb5 {[%clk 0:01:50]}  axb5 {[%clk 0:01:44]} 18. Nc3 {[%clk 0:01:46]}  Nd4 {[%clk 0:01:41]} 19. Ncb1 {[%clk 0:01:32]}  Kb7 {[%clk 0:01:36]} 20. Ne4 {[%clk 0:01:22]}  Nd5 {[%clk 0:01:34]} 21. Bxd4 {[%clk 0:01:07]}  cxd4 {[%clk 0:01:35]} 22. Kb2 {[%clk 0:01:02]}  Ra8 {[%clk 0:01:29]} 23. g4 {[%clk 0:00:54]}  Ra6 {[%clk 0:01:18]} 24. Kc1 {[%clk 0:00:39]}  Bb4 {[%clk 0:01:10]} 25. Kd1 {[%clk 0:00:36]}  Bxe1 {[%clk 0:01:06]} 26. Rxe1 {[%clk 0:00:34]}  Ra1 {[%clk 0:01:03]} 27. Ke2 {[%clk 0:00:31]}  f5 {[%clk 0:00:59]} 28. Nc5+ {[%clk 0:00:28]}  Kc6 {[%clk 0:00:59]} 29. Nxe6 {[%clk 0:00:29]}  Rxb1 {[%clk 0:00:57]} 30. Rxb1 {[%clk 0:00:25]}  Nc3+ {[%clk 0:00:57]} 31. Kf3 {[%clk 0:00:22]}  Nxb1 {[%clk 0:00:58]} 32. Nxd4+ {[%clk 0:00:22]}  Kb6 {[%clk 0:00:57]} 33. gxf5 {[%clk 0:00:21]}  Rd8 {[%clk 0:00:45]} 34. Ne6 {[%clk 0:00:19]}  Rd7 {[%clk 0:00:45]} 35. Ke4 {[%clk 0:00:18]}  b4 {[%clk 0:00:43]} 36. d4 {[%clk 0:00:16]}  Na3 {[%clk 0:00:42]} 37. d5 {[%clk 0:00:15]}  Nxc2 {[%clk 0:00:41]} 38. h4 {[%clk 0:00:15]}  Na1 {[%clk 0:00:40]} 39. h5 {[%clk 0:00:14]}  Nxb3 {[%clk 0:00:38]} 40. h6 {[%clk 0:00:14]}  gxh6 {[%clk 0:00:38]} 41. f6 {[%clk 0:00:15]}  Nc5+ {[%clk 0:00:38]} 42. Ke5 {[%clk 0:00:14]}  b3 {[%clk 0:00:35]} 43. Nxc5 {[%clk 0:00:11]}  Kxc5 {[%clk 0:00:34]} 44. Ke6 {[%clk 0:00:12]}  Ra7 {[%clk 0:00:28]} 45. d6 {[%clk 0:00:11]}  b2 {[%clk 0:00:28]} 46. f7 {[%clk 0:00:11]}  Rxf7 {[%clk 0:00:26]} 47. Kxf7 {[%clk 0:00:00]}  Kxd6 {[%clk 0:00:26]} 0-1


[Site "https://www.chess.com"]

[Event "Titled Tuesday Blitz July 11 Early 2023"]
[White "Mangialardo, Tiago Carvalho"]
[Black "Mikhaylova, Irina"]
[WhiteFideId "2130718"]
[BlackFideId "4109040"]
[WhiteElo "2148"]
[BlackElo "2276"]
[Result "0-1"]
[Round "11"]
[TimeControl "180+2"]
[Date "2023.07.11"]
[WhiteClock "0:00:00"]
[BlackClock "0:02:12"]
[Board "125"]

1. e4 {[%clk 0:03:00]}  c5 {[%clk 0:03:00]} 2. Nf3 {[%clk 0:02:59]}  Nc6 {[%clk 0:03:00]} 3. Bb5 {[%clk 0:02:58]}  Na5 {[%clk 0:03:00]} 4. a4 {[%clk 0:02:50]}  a6 {[%clk 0:02:59]} 5. Be2 {[%clk 0:02:49]}  e6 {[%clk 0:03:00]} 6. O-O {[%clk 0:02:39]}  d6 {[%clk 0:02:57]} 7. c3 {[%clk 0:02:31]}  Nf6 {[%clk 0:02:57]} 8. Qc2 {[%clk 0:02:11]}  Be7 {[%clk 0:02:49]} 9. d4 {[%clk 0:02:01]}  cxd4 {[%clk 0:02:49]} 10. cxd4 {[%clk 0:02:01]}  O-O {[%clk 0:02:49]} 11. Nc3 {[%clk 0:01:54]}  Bd7 {[%clk 0:02:49]} 12. b4 {[%clk 0:01:43]}  Nc6 {[%clk 0:02:49]} 13. b5 {[%clk 0:01:42]}  Nb4 {[%clk 0:02:46]} 14. Qb1 {[%clk 0:01:25]}  a5 {[%clk 0:02:40]} 15. e5 {[%clk 0:01:00]}  Nfd5 {[%clk 0:02:33]} 16. Ne4 {[%clk 0:01:00]}  dxe5 {[%clk 0:02:27]} 17. dxe5 {[%clk 0:00:51]}  Rc8 {[%clk 0:02:25]} 18. Bd2 {[%clk 0:00:41]}  f5 {[%clk 0:02:21]} 19. exf6 {[%clk 0:00:23]}  Nxf6 {[%clk 0:02:20]} 20. Rd1 {[%clk 0:00:16]}  Qe8 {[%clk 0:02:20]} 21. Ne5 {[%clk 0:00:14]}  Nfd5 {[%clk 0:02:19]} 22. Bd3 {[%clk 0:00:07]}  Nxd3 {[%clk 0:02:18]} 23. Qxd3 {[%clk 0:00:06]}  Bb4 {[%clk 0:02:19]} 24. Bxb4 {[%clk 0:00:02]}  axb4 {[%clk 0:02:19]} 25. Nxd7 {[%clk 0:00:01]}  Qxd7 {[%clk 0:02:18]} 26. Rac1 {[%clk 0:00:01]}  Qf7 {[%clk 0:02:14]} 27. Qd4 {[%clk 0:00:01]}  Qf4 {[%clk 0:02:13]} 28. Nd6 {[%clk 0:00:00]}  Qxd6 {[%clk 0:02:12]} 0-1


[Site "https://www.chess.com"]

[Event "Titled Tuesday Blitz July 11 Early 2023"]
[White "Liu, Casper"]
[Black "abelmat"]
[WhiteFideId "1454153"]
[WhiteElo "2491"]
[BlackElo "1980"]
[Result "1-0"]
[Round "11"]
[TimeControl "180+2"]
[Date "2023.07.11"]
[WhiteClock "0:01:04"]
[BlackClock "0:00:11"]
[Board "126"]

1. h3 {[%clk 0:03:00]}  d5 {[%clk 0:02:58]} 2. d4 {[%clk 0:02:58]}  Nf6 {[%clk 0:02:53]} 3. Nf3 {[%clk 0:02:53]}  e6 {[%clk 0:02:52]} 4. Bf4 {[%clk 0:02:54]}  Bd6 {[%clk 0:02:48]} 5. Ne5 {[%clk 0:02:49]}  O-O {[%clk 0:02:46]} 6. e3 {[%clk 0:02:48]}  b6 {[%clk 0:02:46]} 7. Bd3 {[%clk 0:02:43]}  Bb7 {[%clk 0:02:46]} 8. Nd2 {[%clk 0:02:42]}  Ne4 {[%clk 0:02:39]} 9. Qh5 {[%clk 0:02:31]}  f5 {[%clk 0:02:13]} 10. g4 {[%clk 0:02:25]}  Nd7 {[%clk 0:01:45]} 11. gxf5 {[%clk 0:02:12]}  exf5 {[%clk 0:01:22]} 12. Rg1 {[%clk 0:02:11]}  Ndf6 {[%clk 0:01:11]} 13. Qh6 {[%clk 0:01:40]}  Qe7 {[%clk 0:00:57]} 14. f3 {[%clk 0:01:38]}  Nxd2 {[%clk 0:00:34]} 15. Kxd2 {[%clk 0:01:39]}  Ng4 {[%clk 0:00:12]} 16. Rxg4 {[%clk 0:01:11]}  fxg4 {[%clk 0:00:11]} 17. Qxh7# {[%clk 0:01:04]} 1-0


[Site "https://www.chess.com"]